bitfinex/quotes_SOLUSD_20251226
["timestamp","ask_amount","ask_price","bid_price","bid_amount"]
[1766723737274,0.72,122.3,122.27,4.18812137]
[1766723738280,0.72,122.3,122.27,12.36656813]
[1766723745601,0.72,122.3,122.27,8.89844676]
[1766723745804,0.72,122.3,122.27,12.36656813]
[1766723751303,0.72,122.3,122.27,8.89844676]
[1766723751509,0.72,122.3,122.27,12.36656813]
[1766723752010,0.72,122.3,122.27,11.1192375]
[1766723753610,0.72,122.3,122.27,8.89844676]
[1766723753795,0.72,122.3,122.27,11.1192375]
[1766723757212,0.72,122.3,122.27,8.89844676]
[1766723757418,0.72,122.3,122.27,11.1192375]
[1766723758427,0.65,122.35,122.29,2.22079074]
[1766723758712,0.65,122.34,122.31,2.91079074]
[1766723760315,0.65,122.34,122.32,2.22079074]
[1766723760498,0.65,122.36,122.33,2.91079074]
[1766723760695,0.65,122.36,122.34,2.22079074]
[1766723762815,0.65,122.36,122.33,8.86442739]
[1766723763007,0.65,122.36,122.33,11.08521813]
[1766723764025,0.65,122.36,122.33,8.86442739]
[1766723764210,0.65,122.36,122.33,11.08521813]
[1766723765523,0.65,122.36,122.34,2.22079074]
[1766723768423,0.65,122.36,122.34,10.39441714]
[1766723768730,0.65,122.37,122.34,11.08441714]
[1766723769503,0.65,122.37,122.34,8.8636264]
[1766723769815,0.65,122.37,122.34,11.08441714]
[1766723770325,33.52789082,122.4,122.36,0.69]
[1766723770326,0.65,122.39,122.36,0.69]
[1766723770529,0.65,122.39,122.36,2.91079074]
[1766723771197,0.65,122.39,122.36,11.08309893]
[1766723771401,0.65,122.38,122.36,0.69]
[1766723771622,0.65,122.38,122.35,14.92]
[1766723771817,0.65,122.37,122.35,14.92]
[1766723774007,0.65,122.37,122.34,2.22079074]
[1766723776617,0.65,122.37,122.34,2.91079074]
[1766723776822,0.65,122.37,122.34,11.08471791]
[1766723777732,0.65,122.37,122.34,8.86392717]
[1766723777927,0.65,122.37,122.34,11.08471791]
[1766723778230,0.65,122.37,122.35,2.22079074]
[1766723778431,0.71,122.39,122.36,2.91079074]
[1766723778730,0.71,122.4,122.36,14.92]
[1766723778905,0.71,122.4,122.37,2.22079074]
[1766723779233,0.71,122.4,122.37,2.91079074]
[1766723779814,0.71,122.4,122.37,2.22079074]
[1766723781329,0.71,122.39,122.36,36.44105699]
[1766723781521,0.71,122.39,122.36,26.00338403]
[1766723783935,0.71,122.39,122.36,25.31338403]
[1766723784241,2.22079074,122.37,122.34,18.61113756]
[1766723784431,0.71,122.36,122.34,8.1734646]
[1766723786843,0.71,122.36,122.34,10.39425534]
[1766723787036,0.71,122.36,122.34,11.08425534]
[1766723791936,2.22079074,122.39,122.35,2.22079074]
[1766723792138,0.71,122.4,122.36,2.91079074]
[1766723792444,0.71,122.4,122.37,2.22079074]
[1766723792754,0.71,122.4,122.37,0.69]
[1766723792950,0.71,122.4,122.37,2.22079074]
[1766723793138,0.71,122.4,122.36,0.69]
[1766723793340,0.71,122.4,122.37,2.22079074]
[1766723796543,0.71,122.4,122.37,10.3925977]
[1766723798132,0.71,122.42,122.38,2.91079074]
[1766723798328,2.93079074,122.42,122.38,2.91079074]
[1766723798649,2.93079074,122.42,122.39,2.22079074]
[1766723798650,0.71,122.42,122.39,2.22079074]
[1766723800254,0.71,122.42,122.39,10.39137569]
[1766723800954,0.71,122.41,122.39,8.17058495]
[1766723804356,0.71,122.41,122.38,11.08178868]
[1766723805061,0.71,122.41,122.38,2.91079074]
[1766723805238,0.71,122.41,122.38,0.69]
[1766723805432,0.71,122.41,122.38,2.91079074]
[1766723806856,0.71,122.41,122.38,0.69]
[1766723807054,0.71,122.41,122.38,2.91079074]
[1766723811165,0.71,122.41,122.37,8.17174723]
[1766723811350,0.71,122.41,122.37,10.39253797]
[1766723812062,0.71,122.41,122.37,11.63560747]
[1766723812368,0.71,122.41,122.37,12.31560747]
[1766723813047,0.71,122.41,122.37,11.63560747]
[1766723813357,0.67,122.4,122.37,3.46386024]
[1766723813543,0.67,122.4,122.36,27.23624054]
[1766723814155,0.67,122.4,122.36,26.55624054]
[1766723814361,0.67,122.4,122.37,4.14386024]
[1766723816168,0.67,122.4,122.37,0.68]
[1766723817468,0.67,122.4,122.37,4.14386024]
[1766723820671,0.67,122.4,122.37,12.31575524]
[1766723821465,0.67,122.4,122.37,4.14386024]
[1766723821763,0.67,122.4,122.37,3.46386024]
[1766723821963,0.67,122.4,122.36,23.09231505]
[1766723822177,0.67,122.4,122.37,0.68]
[1766723822359,0.67,122.4,122.37,4.14386024]
[1766723824173,0.67,122.4,122.37,0.68]
[1766723824467,0.67,122.4,122.37,4.14386024]
[1766723828476,0.67,122.4,122.37,0.68]
[1766723828650,0.67,122.4,122.37,4.14386024]
[1766723829976,0.67,122.4,122.37,0.68]
[1766723830169,0.67,122.37,122.33,8.85441158]
[1766723830471,3.46386024,122.38,122.29,183.11089579]
[1766723830472,3.46386024,122.35,122.31,4.14386024]
[1766723830677,0.67,122.34,122.31,15.6]
[1766723830856,0.67,122.34,122.31,14.92]
[1766723831180,0.67,122.34,122.31,18.38386024]
[1766723831769,0.67,122.34,122.31,27.23965182]
[1766723832160,0.67,122.34,122.31,23.77579158]
[1766723832478,0.67,122.34,122.31,27.23965182]
[1766723832678,0.67,122.34,122.31,15.6]
[1766723832864,0.67,122.34,122.31,19.06386024]
[1766723833681,0.67,122.34,122.31,27.23978108]
[1766723834074,0.67,122.34,122.31,12.31978108]
[1766723834764,0.67,122.34,122.3,37.69787955]
[1766723835366,0.66,122.33,122.3,37.69787955]
[1766723835680,0.66,122.33,122.3,14.92]
[1766723836077,0.66,122.33,122.3,15.62]
[1766723837169,0.66,122.33,122.3,27.26043653]
[1766723837376,0.66,122.34,122.31,4.16386024]
[1766723838585,0.66,122.34,122.31,12.33978261]
[1766723838966,0.66,122.34,122.31,8.87592237]
[1766723839276,0.66,122.34,122.31,0.7]
[1766723839680,4.12386024,122.34,122.31,0.7]
[1766723839870,0.66,122.33,122.31,0.7]
[1766723841679,0.66,122.33,122.31,4.16386024]
[1766723841878,0.66,122.33,122.31,0.7]
[1766723842180,0.66,122.33,122.31,4.16386024]
[1766723843568,0.66,122.38,122.33,0.7]
[1766723843774,0.66,122.38,122.34,0.7]
[1766723843986,3.46386024,122.38,122.34,4.16386024]
[1766723844283,0.66,122.37,122.34,4.16386024]
[1766723844587,0.66,122.37,122.35,3.46386024]
[1766723845067,3.46386024,122.39,122.35,3.46386024]
[1766723845387,0.66,122.38,122.33,14.92]
[1766723845585,0.66,122.37,122.34,4.16386024]
[1766723846086,0.66,122.37,122.34,12.33767562]
[1766723846284,0.66,122.38,122.35,4.16386024]
[1766723846661,3.46386024,122.39,122.35,3.46386024]
[1766723846864,0.66,122.39,122.36,4.16386024]
[1766723847069,0.66,122.39,122.36,3.46386024]
[1766723847264,0.66,122.39,122.35,12.33712848]
[1766723847479,0.66,122.38,122.35,12.33712848]
[1766723847986,0.66,122.38,122.35,8.87326824]
[1766723848184,0.66,122.38,122.35,12.33712848]
[1766723848699,0.66,122.37,122.34,8.17374879]
[1766723848874,0.66,122.37,122.34,12.33760903]
[1766723852493,0.66,122.37,122.34,11.63760903]
[1766723853805,0.66,122.37,122.34,3.29386024]
[1766723854006,0.56,122.36,122.33,26.55837675]
[1766723857018,0.56,122.36,122.33,3.46386024]
[1766723857321,0.56,122.36,122.33,18.38386024]
[1766723858022,0.56,122.36,122.33,19.08386024]
[1766723859718,0.56,122.36,122.33,0.7]
[1766723859925,12.19653856,122.36,122.33,0.7]
[1766723860225,11.63653856,122.36,122.32,3.46386024]
[1766723860428,0.56,122.35,122.31,25.35767296]
[1766723860626,0.56,122.34,122.31,29.5215332]
[1766723860819,4.02386024,122.35,122.31,29.5215332]
[1766723861000,4.02386024,122.35,122.32,0.7]
[1766723861194,0.14216157,122.39,122.32,0.7]
[1766723861195,20.56941781,122.39,122.33,4.16386024]
[1766723861400,0.56,122.37,122.34,0.7]
[1766723861625,4.02386024,122.37,122.34,0.7]
[1766723862333,4.02386024,122.37,122.33,4.18386024]
[1766723863311,0.56,122.37,122.33,4.18386024]
[1766723864711,4.02386024,122.37,122.33,4.18386024]
[1766723866834,4.02386024,122.37,122.33,0.72]
[1766723867035,12.19593585,122.37,122.33,0.72]
[1766723867634,11.63593585,122.37,122.33,0.72]
[1766723867830,12.19593585,122.37,122.33,0.72]
[1766723869118,11.63593585,122.37,122.33,0.72]
[1766723869317,12.19593585,122.37,122.33,0.72]
[1766723869530,0.56,122.36,122.33,0.72]
[1766723869727,0.56,122.36,122.32,11.63911092]
[1766723869728,0.56,122.35,122.32,0.68]
[1766723869933,4.02386024,122.35,122.32,0.68]
[1766723870129,8.17270818,122.36,122.32,0.68]
[1766723870430,12.19656842,122.36,122.32,0.68]
[1766723873547,11.63656842,122.36,122.32,0.68]
[1766723873737,12.19656842,122.36,122.32,0.68]
[1766723873934,10.95176336,122.36,122.32,0.68]
[1766723874450,10.45176336,122.36,122.31,35.75240983]
[1766723874748,10.45176336,122.36,122.32,0.68]
[1766723875752,10.45176336,122.36,122.33,0.68]
[1766723875961,0.56,122.36,122.33,0.68]
[1766723878458,19.16898807,122.38,122.33,8.17424604]
[1766723878632,2.21905518,122.37,122.34,0.68]
[1766723878833,21.38804325,122.38,122.34,0.68]
[1766723879358,19.16898807,122.38,122.34,0.68]
[1766723879654,21.38804325,122.38,122.34,0.68]
[1766723881254,0.56,122.37,122.34,0.68]
[1766723881842,2.21905518,122.38,122.34,8.17371689]
[1766723882164,2.21905518,122.38,122.35,0.68]
[1766723882556,2.77905518,122.38,122.35,0.68]
[1766723883575,0.56,122.38,122.35,0.68]
[1766723883868,2.77905518,122.38,122.35,0.68]
[1766723884551,2.21905518,122.37,122.35,0.68]
[1766723886069,2.21905518,122.36,122.33,0.68]
[1766723887267,0.56,122.37,122.33,0.68]
[1766723887458,2.21905518,122.36,122.33,0.68]
[1766723887653,2.21905518,122.36,122.32,8.17523467]
[1766723887654,0.56,122.35,122.32,8.17523467]
[1766723887862,0.56,122.35,122.32,8.85523467]
[1766723888674,0.56,122.35,122.32,0.68]
[1766723890582,0.56,122.35,122.32,11.07420166]
[1766723892785,2.21905518,122.36,122.32,10.39420166]
[1766723893085,2.21905518,122.36,122.33,0.68]
[1766723894359,2.77905518,122.36,122.33,0.68]
[1766723895476,2.21905518,122.36,122.33,0.68]
[1766723896063,8.73214502,122.37,122.33,0.68]
[1766723896261,2.21905518,122.36,122.33,0.68]
[1766723897482,10.9512002,122.37,122.33,0.68]
[1766723901891,0.56,122.36,122.33,0.68]
[1766723904890,2.77905518,122.38,122.34,0.7]
[1766723905476,2.77905518,122.38,122.35,0.7]
[1766723908806,0.56,122.38,122.35,0.7]
[1766723909008,2.77905518,122.38,122.35,0.7]
[1766723915619,18.60843278,122.39,122.35,0.7]
[1766723915803,20.82748796,122.39,122.35,0.7]
[1766723916116,18.60843278,122.39,122.37,0.7]
[1766723916518,19.16843278,122.39,122.37,0.7]
[1766723917017,19.16843278,122.39,122.36,2.21905518]
[1766723917190,19.16843278,122.39,122.36,2.91905518]
[1766723918031,19.16843278,122.39,122.36,0.7]
[1766723919530,20.82748796,122.39,122.36,0.7]
[1766723919736,21.38748796,122.39,122.36,0.7]
[1766723920734,19.16843278,122.39,122.36,0.7]
[1766723926035,21.38748796,122.39,122.36,0.7]
[1766723928447,2.21905518,122.38,122.36,0.7]
[1766723928647,2.77905518,122.37,122.33,0.66]
[1766723928948,2.21905518,122.36,122.33,0.66]
[1766723929127,2.21905518,122.35,122.33,0.66]
[1766723930942,10.9518985,122.36,122.33,0.66]
[1766723933651,9.9518985,122.36,122.33,0.66]
[1766723935936,3.46714269,122.36,122.33,0.66]
[1766723937553,3.46714269,122.37,122.33,4.12714269]
[1766723940474,11.63946242,122.37,122.33,4.12714269]
[1766723942283,11.63946242,122.37,122.34,0.66]
[1766723943885,32.06658703,122.38,122.34,0.66]
[1766723944056,5.48781014,122.37,122.34,4.12714269]
[1766723944254,5.48781014,122.37,122.34,0.66]
[1766723944479,3.46714269,122.37,122.34,0.66]
[1766723947183,11.63952639,122.37,122.33,0.66]
[1766723947374,11.63952639,122.37,122.33,4.12714269]
[1766723947688,11.63952639,122.37,122.34,0.66]
[1766723949311,11.63871902,122.38,122.34,3.46714269]
[1766723949484,11.63871902,122.38,122.35,0.66]
[1766723951705,8.17157633,122.38,122.35,0.66]
[1766723951887,22.0756549,122.39,122.35,0.66]
[1766723952216,5.4879727,122.38,122.35,4.12714269]
[1766723952387,5.4879727,122.38,122.36,0.66]
[1766723953918,22.0756549,122.39,122.36,0.66]
[1766723958026,18.60851221,122.39,122.36,0.66]
[1766723960119,18.60851221,122.39,122.36,3.46714269]
[1766723960328,18.60851221,122.39,122.37,0.68]
[1766723961123,18.60851221,122.39,122.36,3.46714269]
[1766723962806,18.60851221,122.39,122.37,0.68]
[1766723963410,10.43767296,122.39,122.37,0.68]
[1766723971843,18.60831404,122.39,122.37,0.68]
[1766723976247,8.17024848,122.4,122.37,0.68]
[1766723976442,8.17024848,122.4,122.38,0.68]
[1766723980344,28.59303928,122.41,122.38,4.14714269]
[1766723981065,8.16926721,122.41,122.39,0.68]
[1766723981734,8.16883774,122.42,122.39,0.68]
[1766723987365,11.63598043,122.42,122.39,0.68]
[1766723991242,8.16883774,122.42,122.39,0.68]
[1766723991442,10.53767296,122.44,122.4,3.46714269]
[1766723991651,0.1,122.44,122.42,0.67]
[1766723992459,0.1,122.44,122.43,0.67]
[1766723995266,0.1,122.44,122.42,4.13714269]
[1766723995441,0.1,122.44,122.43,0.67]
[1766723999981,0.1,122.44,122.41,0.67]
[1766724000157,0.1,122.44,122.42,0.67]
[1766724002676,0.72,122.43,122.4,17.80567258]
[1766724003083,0.82,122.44,122.41,0.67]
[1766724003672,3.03567258,122.44,122.41,0.67]
[1766724003879,11.20309765,122.44,122.41,0.67]
[1766724005480,2.93567258,122.43,122.41,0.67]
[1766724005954,10.38366831,122.43,122.41,0.67]
[1766724006155,11.10366831,122.43,122.41,0.67]
[1766724006867,11.10366831,122.43,122.39,0.67]
[1766724007069,11.10366831,122.43,122.4,0.67]
[1766724007957,8.88799573,122.43,122.4,0.67]
[1766724008574,8.16799573,122.43,122.4,0.67]
[1766724008776,8.16799573,122.43,122.41,0.67]
[1766724010375,8.88799573,122.43,122.41,0.67]
[1766724010577,8.16799573,122.43,122.41,0.67]
[1766724010759,8.88799573,122.43,122.41,0.67]
[1766724010961,8.16799573,122.43,122.41,0.67]
[1766724011290,11.20317355,122.44,122.41,0.67]
[1766724011581,0.1,122.44,122.42,0.67]
[1766724011958,0.1,122.44,122.42,2.88567258]
[1766724015176,0.1,122.44,122.42,2.21567258]
[1766724015383,0.1,122.44,122.43,0.67]
[1766724015588,0.1,122.46,122.43,2.21567258]
[1766724015775,0.1,122.46,122.45,0.67]
[1766724015973,0.1,122.49,122.45,2.21567258]
[1766724016169,0.8,122.49,122.46,2.88567258]
[1766724016488,0.1,122.49,122.47,0.67]
[1766724016688,0.1,122.49,122.47,2.88567258]
[1766724016889,0.1,122.49,122.48,0.67]
[1766724017995,0.1,122.5,122.49,0.67]
[1766724020685,0.1,122.51,122.49,2.88567258]
[1766724020886,0.1,122.51,122.49,0.67]
[1766724021187,3.01567258,122.51,122.48,0.67]
[1766724022191,0.8,122.51,122.48,0.67]
[1766724022492,0.8,122.51,122.48,2.88567258]
[1766724022687,8.96293484,122.51,122.48,2.88567258]
[1766724023297,8.26293484,122.51,122.48,2.88567258]
[1766724023484,0.7,122.5,122.48,0.67]
[1766724023803,0.7,122.5,122.48,2.88567258]
[1766724024306,8.96293484,122.51,122.48,2.88567258]
[1766724029206,8.96293484,122.51,122.48,0.67]
[1766724029389,11.17860742,122.51,122.48,0.67]
[1766724029579,3.01567258,122.51,122.48,0.67]
[1766724029785,0.1,122.51,122.49,0.67]
[1766724032790,11.17827368,122.51,122.49,0.67]
[1766724033109,11.17827368,122.51,122.48,0.67]
[1766724034413,0.1,122.51,122.48,0.67]
[1766724034617,0.1,122.51,122.49,0.67]
[1766724034821,2.31567258,122.51,122.49,0.67]
[1766724038429,0.1,122.51,122.49,0.67]
[1766724043831,10.37768852,122.52,122.49,0.67]
[1766724046443,8.16201594,122.52,122.49,0.67]
[1766724046618,10.37768852,122.52,122.49,0.67]
[1766724050234,11.07768852,122.52,122.49,0.67]
[1766724052754,2.21567258,122.51,122.49,0.67]
[1766724054365,8.86201594,122.52,122.49,0.67]
[1766724054566,2.21567258,122.51,122.49,0.67]
[1766724060087,3.45838957,122.51,122.49,0.67]
[1766724061674,12.32040551,122.52,122.49,0.67]
[1766724062377,8.86201594,122.52,122.49,0.67]
[1766724062550,12.32040551,122.52,122.49,0.67]
[1766724064479,13.89606253,122.5,122.4,3.45838957]
[1766724064774,3.45838957,122.45,122.42,0.67]
[1766724069694,8.86623411,122.46,122.42,0.67]
[1766724069877,3.45838957,122.45,122.42,0.67]
[1766724075290,12.32462368,122.46,122.43,0.71]
[1766724075480,3.45838957,122.45,122.43,0.71]
[1766724078874,12.32462368,122.46,122.43,0.71]
[1766724084219,3.45838957,122.45,122.43,0.71]
[1766724086819,130.03767296,122.5,122.43,0.71]
[1766724086820,0.68,122.49,122.45,0.71]
[1766724086997,4.13838957,122.48,122.45,0.71]
[1766724087724,0.68,122.48,122.46,0.71]
[1766724094130,3.45838957,122.49,122.46,0.71]
[1766724094442,8.16350688,122.5,122.46,0.71]
[1766724094443,13.89606253,122.5,122.47,0.71]
[1766724094627,4.13838957,122.51,122.48,0.71]
[1766724095435,22.73827857,122.52,122.49,0.71]
[1766724096435,3.45838957,122.51,122.49,0.71]
[1766724098113,4.13838957,122.51,122.49,0.71]
[1766724099731,3.45838957,122.51,122.49,0.71]
[1766724100657,14.57606253,122.52,122.49,0.71]
[1766724102558,22.73823713,122.52,122.49,0.71]
[1766724102850,4.11838957,122.51,122.48,0.68]
[1766724108666,0.66,122.51,122.48,0.68]
[1766724108869,0.66,122.51,122.48,4.13838957]
[1766724109166,0.66,122.51,122.49,0.7]
[1766724110540,10.43767296,122.52,122.49,3.45838957]
[1766724110864,10.43767296,122.52,122.5,0.7]
[1766724111544,11.08767296,122.52,122.5,0.7]
[1766724112767,0.65,122.52,122.5,0.7]
[1766724113075,0.65,122.52,122.5,4.15838957]
[1766724113381,0.65,122.52,122.5,0.7]
[1766724115582,18.59921096,122.53,122.51,0.7]
[1766724115881,19.24921096,122.53,122.5,3.45838957]
[1766724116083,19.24921096,122.53,122.5,4.15838957]
[1766724116282,19.24921096,122.53,122.5,0.7]
[1766724116468,18.59921096,122.53,122.5,0.7]
[1766724116673,0.65,122.52,122.5,3.45838957]
[1766724117175,8.81218382,122.52,122.49,0.7]
[1766724117373,8.81218382,122.52,122.5,3.45838957]
[1766724117959,8.81218382,122.52,122.5,4.15838957]
[1766724119983,8.81218382,122.52,122.5,2.91272561]
[1766724120880,0.65,122.52,122.5,2.91272561]
[1766724121787,0.65,122.52,122.5,0.7]
[1766724121958,8.81196283,122.52,122.5,0.7]
[1766724122162,0.65,122.52,122.5,0.7]
[1766724122385,2.21272561,122.51,122.47,15.6]
[1766724122686,0.65,122.5,122.48,2.21272561]
[1766724122885,0.65,122.49,122.46,2.91272561]
[1766724124071,0.65,122.49,122.46,2.21272561]
[1766724124270,0.65,122.49,122.47,0.7]
[1766724124883,0.65,122.49,122.47,2.91272561]
[1766724127088,0.65,122.5,122.47,2.91272561]
[1766724127390,0.65,122.51,122.48,2.91272561]
[1766724128991,8.81277574,122.51,122.48,2.91272561]
[1766724133596,8.16277574,122.51,122.48,2.91272561]
[1766724133896,0.65,122.5,122.48,2.91272561]
[1766724135106,8.87277574,122.51,122.48,2.91272561]
[1766724142919,11.08550135,122.51,122.48,0.7]
[1766724144817,8.87277574,122.51,122.48,2.91272561]
[1766724148296,0.71,122.48,122.45,0.66]
[1766724148706,0.71,122.48,122.45,2.87272561]
[1766724149005,0.71,122.5,122.47,0.66]
[1766724149213,0.71,122.5,122.48,0.66]
[1766724149407,0.71,122.5,122.47,2.87272561]
[1766724150520,8.8733961,122.5,122.47,2.87272561]
[1766724151403,8.8733961,122.5,122.47,0.66]
[1766724152228,0.71,122.49,122.47,0.66]
[1766724152435,0.71,122.48,122.46,14.9]
[1766724152610,0.71,122.48,122.45,2.87272561]
[1766724153311,0.71,122.48,122.46,0.66]
[1766724157638,0.71,122.49,122.46,2.87272561]
[1766724158215,0.71,122.49,122.46,0.66]
[1766724158429,8.87350849,122.5,122.47,2.87272561]
[1766724159528,0.71,122.49,122.47,2.87272561]
[1766724161047,0.71,122.5,122.47,2.87272561]
[1766724162013,0.71,122.5,122.47,2.93272561]
[1766724168544,0.71,122.5,122.47,2.21272561]
[1766724168748,20.81324487,122.51,122.48,0.72]
[1766724168946,21.49324487,122.51,122.48,0.72]
[1766724169560,20.81324487,122.51,122.48,0.72]
[1766724169723,0.68,122.5,122.47,2.21272561]
[1766724171956,0.68,122.5,122.47,2.93272561]
[1766724173464,0.68,122.5,122.47,11.09753211]
[1766724175051,0.68,122.52,122.49,2.93272561]
[1766724176157,0.68,122.52,122.5,0.72]
[1766724176541,0.68,122.52,122.49,2.93272561]
[1766724177064,0.68,122.52,122.5,0.72]
[1766724178163,0.68,122.52,122.49,2.21272561]
[1766724178364,0.68,122.52,122.5,0.72]
[1766724179249,0.68,122.52,122.49,2.93272561]
[1766724179664,0.68,122.52,122.5,0.72]
[1766724180866,0.68,122.52,122.49,2.93272561]
[1766724181986,0.68,122.52,122.49,4.17778689]
[1766724183176,22.73700335,122.53,122.5,0.72]
[1766724183473,19.27921646,122.53,122.5,0.72]
[1766724183678,22.73700335,122.53,122.5,0.72]
[1766724184591,22.05700335,122.53,122.5,0.72]
[1766724184882,0.68,122.52,122.5,0.72]
[1766724186482,22.73700335,122.53,122.5,0.72]
[1766724186667,19.27921646,122.53,122.5,0.72]
[1766724186868,22.73700335,122.53,122.5,0.72]
[1766724189095,19.27921646,122.53,122.5,0.72]
[1766724189388,22.73700335,122.53,122.5,0.72]
[1766724193605,18.59921646,122.53,122.5,0.72]
[1766724193774,20.4008289,122.55,122.53,0.72]
[1766724193775,8.15993472,122.55,122.53,0.72]
[1766724194096,0.67,122.54,122.51,0.69]
[1766724194806,0.67,122.54,122.52,0.69]
[1766724195174,8.15993472,122.55,122.52,0.69]
[1766724195395,8.16420003,122.6,122.55,10.43767296]
[1766724195699,0.1,122.63,122.59,3.45778689]
[1766724195993,0.1,122.63,122.6,3.45778689]
[1766724196201,0.77,122.63,122.57,14.9]
[1766724196407,0.77,122.63,122.59,3.45778689]
[1766724197498,8.92517839,122.63,122.59,3.45778689]
[1766724197893,8.92517839,122.63,122.57,33.49575035]
[1766724197894,8.92517839,122.63,122.6,3.45778689]
[1766724198190,12.38296528,122.63,122.59,3.45778689]
[1766724198397,8.92517839,122.63,122.6,3.45778689]
[1766724198700,12.38296528,122.63,122.59,3.45778689]
[1766724198879,0.67,122.61,122.57,33.49575035]
[1766724199200,0.67,122.59,122.56,3.45778689]
[1766724199397,0.67,122.59,122.57,3.45778689]
[1766724200095,0.67,122.6,122.57,3.45778689]
[1766724200391,12.28324413,122.62,122.58,3.45778689]
[1766724200575,8.82545724,122.62,122.58,3.45778689]
[1766724200771,12.28324413,122.62,122.58,3.45778689]
[1766724201201,0.67,122.62,122.59,3.45778689]
[1766724204296,0.67,122.62,122.56,28.55744124]
[1766724204485,0.67,122.62,122.59,3.45778689]
[1766724204679,0.67,122.62,122.56,28.55744124]
[1766724204903,0.67,122.62,122.59,3.45778689]
[1766724205605,0.1,122.63,122.59,3.45778689]
[1766724205907,0.77,122.63,122.6,3.45778689]
[1766724209717,0.77,122.63,122.59,3.45778689]
[1766724210515,0.77,122.63,122.58,8.15793767]
[1766724210686,0.77,122.63,122.59,3.45778689]
[1766724211206,0.7,122.62,122.59,3.45778689]
[1766724212282,0.1,122.63,122.59,3.45778689]
[1766724212610,0.8,122.63,122.6,3.45778689]
[1766724213798,0.8,122.63,122.59,11.61504375]
[1766724215510,0.8,122.63,122.6,3.45778689]
[1766724218317,0.8,122.63,122.59,11.61504375]
[1766724218532,0.7,122.62,122.59,8.15725686]
[1766724218740,4.25778689,122.63,122.59,11.61504375]
[1766724219036,4.25778689,122.63,122.6,3.45778689]
[1766724219731,0.8,122.63,122.6,3.45778689]
[1766724220124,4.25778689,122.63,122.6,3.45778689]
[1766724220439,0.8,122.63,122.6,3.45778689]
[1766724226640,0.1,122.64,122.61,14.9]
[1766724227343,0.1,122.64,122.62,3.45778689]
[1766724227642,0.1,122.64,122.63,3.45778689]
[1766724228441,0.1,122.64,122.62,3.45778689]
[1766724233755,0.1,122.64,122.63,3.45778689]
[1766724235068,0.66,122.65,122.63,3.45778689]
[1766724236158,0.66,122.65,122.62,8.15526992]
[1766724236351,0.66,122.67,122.64,3.45778689]
[1766724236554,0.66,122.68,122.66,3.45778689]
[1766724236739,0.66,122.67,122.64,3.45778689]
[1766724236943,0.66,122.67,122.65,3.45778689]
[1766724237142,0.66,122.66,122.61,28.5450316]
[1766724237361,0.66,122.66,122.63,3.45778689]
[1766724237539,0.66,122.66,122.64,3.45778689]
[1766724238365,0.66,122.68,122.65,3.45778689]
[1766724238759,0.66,122.68,122.62,14.88]
[1766724239063,0.66,122.68,122.65,3.45778689]
[1766724239241,0.66,122.68,122.64,8.15368376]
[1766724239445,0.66,122.68,122.65,3.45778689]
[1766724240153,0.66,122.68,122.64,8.15368376]
[1766724240351,0.66,122.67,122.64,3.45778689]
[1766724240659,0.66,122.67,122.65,3.45778689]
[1766724241170,0.66,122.67,122.64,3.45778689]
[1766724241343,22.04620556,122.69,122.63,8.15413814]
[1766724241543,0.66,122.68,122.65,3.45778689]